Cogmind - Beta 12 X6 @@@ ROGUE MODE // 2023.02.09 @ 23:20:54 Player: Cracklepappy Result: Destroyed by D-53 Grenadier with Mini Grenade Launcher Performance ------------- Evolutions (0) 0 Regions Visited (2) 400 Robots Destroyed (19) 95 Value Destroyed (315) 315 Prototype IDs (2) 40 Alien Tech Used (0) 0 Bonus (0) 0 TOTAL SCORE: 850 Bonus ------- None Cogmind --------- Core Integrity 0/250 Matter 246/300 Energy 100/100 System Corruption 0% Temperature Cool (0) Movement Core (50) Location -10/Mines Parts ------- > --- POWER (1) -------- (None) > --- PROPULSION (2) --- (None) > --- UTILITY (2) ------ (None) > --- WEAPON (2) ------- (None) > --- INVENTORY (5) ---- Compact Wheel Assault Rifle Light Assault Rifle Light Assault Rifle Enhanced Flamer Peak State ------------ > --- POWER ------------ Light Ion Engine > --- PROPULSION ------- Light Treads Light Treads > --- UTILITY ---------- Huge Storage Unit Seismic Detector > --- WEAPON ----------- Assault Rifle Light Assault Rifle > --- INVENTORY -------- Ion Engine Light Treads Aluminum Leg Aluminum Leg Compact Wheel Assault Rifle Assault Rifle Assault Rifle Light Assault Rifle Mining Laser [Rating: 8] Favorites ----------- Power Ion Engine Engine Ion Engine Propulsion Light Treads Treads Light Treads Leg Aluminum Leg Wheel Compact Wheel Utility Huge Storage Unit Device Seismic Detector Storage Huge Storage Unit Weapon Assault Rifle Energy Gun Medium Laser Ballistic Gun Assault Rifle Build | -11 -10 -10 ------- Run | Jun Mat Min Slots Evolved . | . . . Power . | . . . Propulsion . | . . . Utility . | . . . Weapon . | . . . Parts Attached 13 | 7 4 2 Power 2 | 1 1 . Engine 2 | 1 1 . Core . | . . . Reactor . | . . . Propulsion 5 | 2 1 2 Treads 3 | 1 1 1 Leg 1 | . . 1 Wheel 1 | 1 . . Hover . | . . . Flight . | . . . Utility 3 | 2 1 . Device 1 | 1 . . Storage 2 | 1 1 . Processor . | . . . Hackware . | . . . Protection . | . . . Artifact . | . . . Weapon 3 | 2 1 . Energy Gun 1 | 1 . . Energy Cannon . | . . . Ballistic Gun 2 | 1 1 . Ballistic Cannon . | . . . Launcher . | . . . Special Weapon . | . . . Impact Weapon . | . . . Slashing Weapon . | . . . Piercing Weapon . | . . . Special Melee Weapon . | . . . Unidentified Prototypes . | . . . Parts Lost 4 | . 2 2 Power 1 | . 1 . Propulsion 2 | . . 2 Utility 1 | . 1 . Weapon . | . . . Highest Loss Streak 2 | . 2 2 To Critical Strikes . | . . . Average Slot Usage (%) 89 | . 92 84 Engine 14 | . 14 14 Treads 24 | . 23 26 Wheel 2 | . 4 . Device 4 | . 7 . Storage 14 | . 14 14 Energy Gun 1 | . 3 . Ballistic Gun 25 | . 24 28 Naked Turns 6 | . . 6 Heaviest Build 88 | 13 88 88 Greatest Support 40 | 16 40 40 Greatest Overweight (x) 2 | . 2 2 Average Overweight (x) . | . . 1 Largest Inventory Capacity 25 | 8 25 25 Average Capacity 18 | 7 19 24 Most Carried 16 | 8 15 16 Average Carried 11 | 7 10 15 Final Capacity 25 | 8 25 5 Final Carried 15 | 8 15 5 Class Distribution -------------------- 100% | Mutant Dominant Class ---------------- Mutant | -10/Materials Mutant | -10/Mines Resources | -11 -10 -10 ----------- Run | Jun Mat Min Matter Collected 500 | 321 179 . Remotely . | . . . Salvage Created 545 | 227 305 13 Parts 50 | 22 28 . Haulers Intercepted 1 | . 1 . Recyclers Shooed 1 | . 1 . Parts Field Recycled . | . . . Retrieved Matter . | . . . Parts Self-Destructed . | . . . Prevented . | . . . Kills | -11 -10 -10 ------- Run | Jun Mat Min Combat Hostiles Destroyed 9 | . 8 1 Guns 9 | . 8 1 Classes Destroyed 7 | 2 4 1 Tunneler 7 | 7 . . Hauler 1 | . 1 . Recycler 1 | 1 . . Watcher 2 | . 2 . Swarmer 3 | . 3 . Grunt 5 | . 5 . Assembled 1 | . . 1 Best Kill Streak 4 | 4 3 1 Combat Bots Only 3 | . 3 1 Max Kills in Single Turn 1 | 1 1 1 Gunslinging . | . . . Exploded . | . . . Melee . | . . . Uniques/NPCs Destroyed . | . . . Combat | -11 -10 -10 -------- Run | Jun Mat Min Damage Taken 875 | . 514 361 Core 251 | . 147 104 Absorbed by Shields . | . . . Core Remaining (%) 100 | 100 . . Volleys Fired 66 | 17 38 11 Largest 2 | 2 2 2 Hottest 70 | 70 70 40 Shots Fired 132 | 34 76 22 Gun 132 | 34 76 22 Cannon . | . . . Launcher . | . . . Special . | . . . Kinetic 112 | 17 73 22 Thermal 20 | 17 3 . Explosive . | . . . Electromagnetic . | . . . Robot Hit Streak 8 | 6 8 5 Robot Miss Streak 4 | 2 4 3 Penetration Max . | . . . Secondary Targets . | . . . Shots Hit Robots 83 | 20 51 12 Core Hits 38 | 9 24 5 Critical Kills . | . . . Critical Parts Destroyed . | . . . Critical Strikes 1 | 1 . . Burn 1 | 1 . . Melee Attacks . | . . . Impact . | . . . Slashing . | . . . Piercing . | . . . Sneak Attacks . | . . . Combat Hostiles . | . . . Follow-up Attacks . | . . . Damage Inflicted 908 | 266 530 112 Guns 906 | 266 530 110 Cannons . | . . . Explosions . | . . . Melee . | . . . Ramming 2 | . . 2 Kinetic 730 | 127 493 110 Thermal 176 | 139 37 . Explosive . | . . . Electromagnetic . | . . . Impact . | . . . Slashing . | . . . Piercing . | . . . Highest Corruption . | . . . Average Corruption . | . . . Corruption Purged . | . . . Corruption Blocked . | . . . Overload Shots . | . . . Overflow Damage . | . . . Projectiles . | . . . Explosions . | . . . Melee . | . . . Knockbacks . | . . . Impact . | . . . Kinetic . | . . . Secondary . | . . . Self-Inflicted Damage . | . . . Shots . | . . . Rammed 1 | . . 1 Targets Rammed 1 | . . 1 Kicked . | . . . Crushed . | . . . Highest Temperature 45 | 38 45 . Average Temperature 14 | 14 14 . Received Heat Transfer 213 | . 213 . Siege Activations . | . . . Robots Corrupted . | . . . Combat Hostiles . | . . . Parts Fried . | . . . Impact Corruptions . | . . . Robots Melted . | . . . Combat Hostiles . | . . . Parts Melted . | . . . Heat Transferred 592 | 481 111 . Parts Sabotaged . | . . . Parts Stolen . | . . . Parts Stripped . | . . . Power Chain Reactions . | . . . Missiles Intercepted . | . . . Alert | -11 -10 -10 ------- Run | Jun Mat Min Peak Influence 265 | 40 265 47 Initial 47 | . 26 47 Average 80 | 19 137 45 Maximum Alert Level 1 | . 1 . Low Security (%) 87 | 100 72 100 Level 1 12 | . 27 . Level 2 . | . . . Level 3 . | . . . Level 4 . | . . . Level 5 . | . . . High Security . | . . . Max Security . | . . . Squads Dispatched 2 | . 2 . Investigation 1 | . 1 . Extermination . | . . . Reinforcement 1 | . 1 . Assault . | . . . Garrison . | . . . Intercept . | . . . Searches Triggered . | . . . Construction Impeded . | . . . Haulers Reinforced . | . . . Active Scanning Responses . | . . . Cargo Convoy Interrupts . | . . . Stealth | -11 -10 -10 --------- Run | Jun Mat Min Distress Signals . | . . . Communications Jammed . | . . . Distress Signals . | . . . Times Spotted 27 | . 14 13 Peak Tracking Total 12 | . 4 12 Tactical Retreats 1 | . 1 . Traps | -11 -10 -10 ------- Run | Jun Mat Min Traps Triggered . | . . . Indirectly . | . . . Trap Hack Attempts . | . . . Triggered . | . . . Disarmed . | . . . Reprogrammed . | . . . Reused . | . . . Traps Extracted . | . . . Installed . | . . . Triggered . | . . . Machines | -11 -10 -10 ---------- Run | Jun Mat Min Machines Disabled . | . . . Max in Single Turn . | . . . Machines Repaired . | . . . Machines Sabotaged . | . . . Overloaded Fab Kills . | . . . Hacking | -11 -10 -10 --------- Run | Jun Mat Min Machines Accessed 3 | . 3 . Terminals 2 | . 2 . Fabricators . | . . . Repair Stations . | . . . Recycling Units 1 | . 1 . Scanalyzers . | . . . Garrison Access . | . . . Total Hacks 11 | . 11 . Successful 4 | . 4 . Failed 7 | . 7 . Catastrophic . | . . . Database Lockouts . | . . . Manual 7 | . 7 . Terminals 6 | . 6 . Fabricators . | . . . Repair Stations . | . . . Recycling Units 5 | . 5 . Scanalyzers . | . . . Garrison Access . | . . . Terminal Hacks 1 | . 1 . Prototype ID Bank 1 | . 1 . Fabricator Hacks . | . . . Repair Station Hacks . | . . . Recycling Unit Hacks 1 | . 1 . Retrieve Components 1 | . 1 . Scanalyzer . | . . . Garrison Access Hacks . | . . . Unauthorized Hacks 2 | . 2 . Terminals . | . . . Fabricators . | . . . Repair Stations . | . . . Recycling Units 2 | . 2 . Reject 1 | . 1 . Tunnel 1 | . 1 . Scanalyzers . | . . . Garrison Access . | . . . Data Cores Recovered . | . . . Used . | . . . Hacking Detections 2 | . 2 . Full Trace Events . | . . . Feedback Events . | . . . Feedback Blocked . | . . . Robot Schematics Acquired . | . . . Robots Built . | . . . Authchips . | . . . Time . | . . . Total Robot Build Rating . | . . . Part Schematics Acquired . | . . . Parts Built . | . . . Authchips . | . . . Time . | . . . Total Part Build Rating . | . . . Parts Repaired . | . . . Time . | . . . Parts Recycled . | . . . Recycled Matter . | . . . Retrieved Matter . | . . . Retrieved Components 2 | . 2 . Parts Scanalyzed . | . . . Part Schematics Acquired . | . . . Parts Damaged . | . . . Bothacking | -11 -10 -10 ------------ Run | Jun Mat Min Used RIF Installer . | . . . Robots Hacked . | . . . Non-combat . | . . . Combat . | . . . Robot Hacks Applied . | . . . Relay Couplers Released . | . . . Fabnet Peak Effective % . | . . . Robots Rewired . | . . . Allies Hacked . | . . . Hacks Repelled . | . . . Allies | -11 -10 -10 -------- Run | Jun Mat Min Total Allies . | . . . Largest Group . | . . . Highest-Rated Group . | . . . Highest-Rated Ally . | . . . Total Orders . | . . . Ally Attacks . | . . . Total Damage . | . . . Kills . | . . . Allies Corrupted . | . . . Allies Melted . | . . . Intel | -11 -10 -10 ------- Run | Jun Mat Min Robot Analysis Total . | . . . Derelict Logs Recovered . | . . . Drone Launches . | . . . Drone Recoveries . | . . . Exploration | -11 -10 -10 ------------- Run | Jun Mat Min Turns Passed 1106 | 223 484 399 Spaces Moved 396 | 86 187 123 Core 13 | 1 . 12 Treads 177 | . 66 111 Legs . | . . . Wheels 206 | 85 121 . Hover . | . . . Flight . | . . . Fastest Speed 50 | 50 100 50 Average Speed 196 | 99 176 293 Slowest Speed 320 | 100 320 320 Overloaded Moves . | . . . Propulsion Burnouts . | . . . Robots Hopped . | . . . Cave-ins Triggered . | . . . Exploration Rate (%) 26 | 5 37 38 Regions Visited 2 Branch Regions 1 Pre-discovered Areas 1 | . 1 . Known Exits Taken . | . . . Unknown Exits Taken 2 | 1 1 . Scrap Searched . | . . . Spaces Dug . | . . . Terrain Destroyed . | . . . Melee . | . . . Projectile . | . . . AOE . | . . . Terrain Rammed . | . . . Walls Destroyed . | . . . Machines Disabled . | . . . Actions | -11 -10 -10 --------- Run | Jun Mat Min Total 600 | 187 275 138 Wait 98 | 66 32 . Move 394 | 85 186 123 Hop . | . . . Pick Up 22 | 11 10 1 Fast Attach 7 | 5 2 . Attach 5 | 2 1 2 Detach . | . . . Swap 1 | . 1 . Drop 6 | 1 5 . Fire 66 | 17 38 11 Melee . | . . . Ram . | . . . Kick . | . . . Crush 1 | . . 1 Escape Stasis . | . . . Rewire . | . . . Trap . | . . . Miscellaneous . | . . . Route ------- -11/Junkyard -10/Materials -10/Mines (discovered 1 exit: [*Exi]) History --------- Turn | Location | Event 28 | -11/Junkyard | Discovered new exit (range 16) 224 | -11/Junkyard | Entered Materials 301 | -10/Materials | Build established: Mutant 645 | -10/Materials | Core integrity fell below 50% 676 | -10/Materials | Discovered new exit (range 11) 708 | -10/Materials | Entered Mines 862 | -10/Mines | A weapon hastily lodged in a ceiling crevice suddenly fell to the ground 940 | -10/Mines | Deemed a non-threat by the Exiles lab entrance 943 | -10/Mines | Discovered new exit (range 5) 1062 | -10/Mines | Assembled infested the area 1089 | -10/Mines | Core integrity fell below 20% 1101 | -10/Mines | Released all parts (6) 1107 | -10/Mines | Destroyed by D-53 Grenadier with Mini Grenade Launcher Last Messages --------------- 01062_ ALERT: Infestation in the mines, dispatching Demolisher response squad. 01077_ Lgt. Treads destroyed. 01079_ K-01 Serf collects debris. 01079_ Lgt. Treads destroyed. 01084_ K-01 Serf collects debris. 01084_ as-64988 destroyed. 01089_ K-01 Serf collects debris. 01101_ Released Ion Engine. 01101_ Released Huge Storage Unit. 01101_ Released Assault Rifle. 01101_ Assault Rifle crushed and broken. 01101_ Released Lgt. Assault Rifle. 01101_ Lgt. Assault Rifle crushed and broken. 01101_ Released Lgt. Treads. 01101_ Lgt. Treads crushed and broken. 01101_ Released Aluminum Leg. 01101_ Aluminum Leg crushed and broken. 01107_ C-30 ARC bursts open, deploying its payload. 01107_ D-53 Grenadier unfolds itself. Map ----- +----------------------------------------------------+ | ??????????????????????????????????????????????? | | ??????????????????????????????????????????????? | | ??????????????????????????????????????????????? | | ??????????????????????????????????????????????? | | ??????????????????????????????????????????????? | | ??????????????????????????????????????????????? | | ??????????????????????????????????????????????? | | ??????????????????????????????????????????????? | | ??????????????????????????????????????????????? | | ??????????????????????????????????????????????? | | ????????????????????? #???????????????????????? | | ????????????????????? ???????????????????????? | | ????????????????????? #??????????????????????? | | ????????????????????# ####???????????????##?? | | ???????????????###### ??????????????? ## | | ??????????????## ???????????????? # | | ??????????????? ???????????????? | | ??????????????? #???????????????# | | ???????????????? #??????????????## # | | ????????????????? ##???????????### | | ?????????????????? ##?????????## | | ???????????????????d%d ??????????# # | | ???????????????????# ??#????????# ? | | ???????????????????# ??? ??????# #? | | ???????????????????# #?????? ##### #? | | ???????????????????# @#????????? ## | | ???????????????????## #####???????? # | | ????????????????????## #??????????# # | | ?????????????????????##### #?????????## | | ????????????##############!#?######### | | ??????????# [[=[%*![|[[*#?# | | ????????????############## #?# | | ?????????????????????????# ### ##### ##### | | ?????????????????????????# #???# ##???# | | ?????????????????????????##### #??## ##????# | | ?????????????????????????????# #??# ##?????# | | ?????????????????????????????# #??# #??????# | | ?????????????????????????????# #??# ######## | | ?????????????????????????????# #??# | | ?????????????????????????????# #??# ######## | | ?????????????????????????????# #?## ##?????? | | ?????????????????????????????? ??# #?????? | | ?????????????????????????????? ??# #????## | | ?????????????????????????????? ??# #???## | | ?????????????????????????????? ??# #??## | | ?????????????????????????????? ??# ##?## | | ?????????????????????????????? ??# #### | | ?????????????????????????????? ??# # ### | | ?????????????????????????????????# ##### | | ?????????????????????????????????# ###?# | +----------------------------------------------------+ Best States ------------- Heat Dissipation 25 Energy Generation 10 Energy Capacity 250 Matter Stores 300 Matter Capacity 300 Sight Range 16 Terrain Scan Density 10 Evasion (%) 40 Recoil Reduction 2 Item Schematics ----------------- None Robot Schematics ------------------ None Fabricated ------------ Nothing Alien Tech Used ----------------- None Achievements -------------- None Challenges ------------ None Game ------ Seed GravityDisposableWell Manual? 0 Play Time 00:10:24 Cumulative 382.6 hours Start 2023.02.09 @ 23:12:27 End 2023.02.09 @ 23:20:54 Sessions 1 Manual Loads 0 Difficulty Rogue Special Mode None Game No. 336 Rogue 336 Adventurer 0 Explorer 0 Win Type - Total 6 Types 4/1/0/0/0/0/1/0/0 Lore% 74 Gallery% 86 Achievement% 71 Wizard Run 0 Options --------- ASCII 0 Keyboard 0 Movement Numpad Keybinds 0 Fullscreen 2 Font 24/Terminus Map View 76x50 Tactical HUD 1 Map Filters NONE Filters NONE Steam 1 RUN: 3fb7a6f0-7dea-4910-89ef-635142641431